[Event "Late-Titled-Tuesday-Blitz-May-07-2024"]
[Site "Chess.com"]
[Date "2024.05.07"]
[Round "7"]
[White "MagnusCarlsen"]
[Black "moro182"]
[Result "1/2-1/2"]
[WhiteElo "3198"]
[BlackElo "2892"]
[TimeControl "180+1"]
[EndTime "15:18:34 PDT"]
[Termination "Game drawn - insufficient material"]

1. c4 {[%clk 0:03:00.9]} 1... g6 {[%clk 0:02:59.9]} 2. d4 {[%clk 0:02:47.8]}
2... Bg7 {[%clk 0:03:00.8]} 3. Nc3 {[%clk 0:02:46.6]} 3... d6 {[%clk 0:03:01.1]}
4. e4 {[%clk 0:02:45.7]} 4... c5 {[%clk 0:03:01.5]} 5. d5 {[%clk 0:02:43.9]}
5... Bxc3+ {[%clk 0:03:02.4]} 6. bxc3 {[%clk 0:02:43.9]} 6... e5 {[%clk
0:03:03.3]} 7. Bd3 {[%clk 0:02:41.2]} 7... Qe7 {[%clk 0:03:03.3]} 8. f4 {[%clk
0:02:38.6]} 8... exf4 {[%clk 0:03:00.3]} 9. Bxf4 {[%clk 0:02:38.9]} 9... Nf6
{[%clk 0:02:50.1]} 10. Nf3 {[%clk 0:02:35.7]} 10... Bg4 {[%clk 0:02:45.6]} 11.
O-O {[%clk 0:02:32.6]} 11... Nbd7 {[%clk 0:02:45.2]} 12. Qd2 {[%clk 0:02:32.3]}
12... Bxf3 {[%clk 0:02:40.1]} 13. gxf3 {[%clk 0:02:24.6]} 13... Nh5 {[%clk
0:02:39.7]} 14. Be3 {[%clk 0:02:23]} 14... g5 {[%clk 0:02:34.9]} 15. Kh1 {[%clk
0:02:22.4]} 15... h6 {[%clk 0:02:29.5]} 16. a4 {[%clk 0:02:19.9]} 16... Ne5
{[%clk 0:02:27.6]} 17. Be2 {[%clk 0:02:19.5]} 17... O-O-O {[%clk 0:02:25.4]} 18.
a5 {[%clk 0:02:19.1]} 18... Rhf8 {[%clk 0:02:18.1]} 19. a6 {[%clk 0:02:17.1]}
19... b6 {[%clk 0:02:17.1]} 20. f4 {[%clk 0:02:15.5]} 20... Nxf4 {[%clk
0:02:14.3]} 21. Bxf4 {[%clk 0:02:16.4]} 21... gxf4 {[%clk 0:02:15.1]} 22. Qxf4
{[%clk 0:02:17.3]} 22... Qg5 {[%clk 0:02:13.5]} 23. Qxg5 {[%clk 0:02:16.3]}
23... hxg5 {[%clk 0:02:14.4]} 24. Rf5 {[%clk 0:02:16]} 24... Rh8 {[%clk
0:01:56.3]} 25. Rxg5 {[%clk 0:02:13.4]} 25... Rh4 {[%clk 0:01:55]} 26. Rf1
{[%clk 0:02:06.7]} 26... Rdh8 {[%clk 0:01:48.2]} 27. Rf2 {[%clk 0:02:05.4]}
27... Rxe4 {[%clk 0:01:45.9]} 28. Kg2 {[%clk 0:02:04.8]} 28... Kd8 {[%clk
0:01:41.3]} 29. Rh5 {[%clk 0:01:39.3]} 29... Rxh5 {[%clk 0:01:20.3]} 30. Bxh5
{[%clk 0:01:38.4]} 30... Ke7 {[%clk 0:01:16.7]} 31. Be2 {[%clk 0:01:37]} 31...
Nxc4 {[%clk 0:01:14.8]} 32. Bd3 {[%clk 0:01:36.5]} 32... Rg4+ {[%clk 0:01:03.2]}
33. Kh3 {[%clk 0:01:30.2]} 33... Ne5 {[%clk 0:01:04.1]} 34. Bb5 {[%clk
0:01:24.8]} 34... Rg5 {[%clk 0:00:50.9]} 35. Rf4 {[%clk 0:01:10.2]} 35... f5
{[%clk 0:00:38]} 36. Rf2 {[%clk 0:00:42.5]} 36... Kf6 {[%clk 0:00:36.7]} 37. Be2
{[%clk 0:00:31.8]} 37... Ng6 {[%clk 0:00:33.1]} 38. Rf1 {[%clk 0:00:29.7]} 38...
Ke5 {[%clk 0:00:28.4]} 39. Bf3 {[%clk 0:00:29.7]} 39... Nf4+ {[%clk 0:00:26.9]}
40. Kh4 {[%clk 0:00:29]} 40... Rg7 {[%clk 0:00:27.2]} 41. Re1+ {[%clk
0:00:27.8]} 41... Kf6 {[%clk 0:00:27.2]} 42. Re8 {[%clk 0:00:28.2]} 42... Rh7+
{[%clk 0:00:27.2]} 43. Kg3 {[%clk 0:00:27.6]} 43... Ng6 {[%clk 0:00:25.6]} 44.
Re6+ {[%clk 0:00:26.6]} 44... Kg5 {[%clk 0:00:25.1]} 45. Rxd6 {[%clk 0:00:25.9]}
45... Nf4 {[%clk 0:00:21.8]} 46. h4+ {[%clk 0:00:22]} 46... Rxh4 {[%clk
0:00:21.4]} 47. Rd7 {[%clk 0:00:22.9]} 47... Rh3+ {[%clk 0:00:21.5]} 48. Kf2
{[%clk 0:00:23.1]} 48... Rh2+ {[%clk 0:00:21.4]} 49. Ke3 {[%clk 0:00:23.2]}
49... Ng6 {[%clk 0:00:19.7]} 50. Rxa7 {[%clk 0:00:20.8]} 50... Ne5 {[%clk
0:00:19.3]} 51. Re7 {[%clk 0:00:15.7]} 51... Nc4+ {[%clk 0:00:19.4]} 52. Kd3
{[%clk 0:00:14.8]} 52... b5 {[%clk 0:00:20]} 53. Re2 {[%clk 0:00:13.1]} 53...
Rh3 {[%clk 0:00:18.9]} 54. a7 {[%clk 0:00:12.8]} 54... Rxf3+ {[%clk 0:00:18.6]}
55. Kc2 {[%clk 0:00:13.4]} 55... Nb6 {[%clk 0:00:14.3]} 56. Re6 {[%clk
0:00:10.3]} 56... Rf2+ {[%clk 0:00:14.6]} 57. Kb3 {[%clk 0:00:09.9]} 57... c4+
{[%clk 0:00:15]} 58. Ka3 {[%clk 0:00:10]} 58... b4+ {[%clk 0:00:12.7]} 59. cxb4
{[%clk 0:00:09.8]} 59... Rf3+ {[%clk 0:00:11.8]} 60. Kb2 {[%clk 0:00:10.3]}
60... Rf2+ {[%clk 0:00:10.9]} 61. Kb1 {[%clk 0:00:08.8]} 61... Rf1+ {[%clk
0:00:10]} 62. Kc2 {[%clk 0:00:09.4]} 62... Rf2+ {[%clk 0:00:10.6]} 63. Kd1
{[%clk 0:00:09.3]} 63... Ra2 {[%clk 0:00:09.5]} 64. Rxb6 {[%clk 0:00:09.8]}
64... Rxa7 {[%clk 0:00:10.1]} 65. Kc2 {[%clk 0:00:10.1]} 65... Kf4 {[%clk
0:00:10.2]} 66. Kc3 {[%clk 0:00:09.8]} 66... Ke5 {[%clk 0:00:09.9]} 67. Kxc4
{[%clk 0:00:09.7]} 67... f4 {[%clk 0:00:08.4]} 68. Re6+ {[%clk 0:00:09.7]} 68...
Kf5 {[%clk 0:00:09]} 69. b5 {[%clk 0:00:07.7]} 69... f3 {[%clk 0:00:09.3]} 70.
Re8 {[%clk 0:00:07.1]} 70... Rf7 {[%clk 0:00:08.3]} 71. Re1 {[%clk 0:00:04.1]}
71... f2 {[%clk 0:00:08.3]} 72. Rf1 {[%clk 0:00:04.5]} 72... Ke5 {[%clk
0:00:08.7]} 73. b6 {[%clk 0:00:02.8]} 73... Kd6 {[%clk 0:00:08.9]} 74. Kb5
{[%clk 0:00:03.1]} 74... Kxd5 {[%clk 0:00:07]} 75. Ka6 {[%clk 0:00:03.6]} 75...
Ke4 {[%clk 0:00:07.1]} 76. b7 {[%clk 0:00:02.9]} 76... Rxb7 {[%clk 0:00:07.3]}
77. Kxb7 {[%clk 0:00:03.8]} 77... Ke3 {[%clk 0:00:07.8]} 78. Rxf2 {[%clk
0:00:04.7]} 78... Kxf2 {[%clk 0:00:08]} 1/2-1/2

[Event "Late-Titled-Tuesday-Blitz-May-07-2024"]
[Site "Chess.com"]
[Date "2024.05.07"]
[Round "7"]
[White "frequentblunders"]
[Black "tolimachess"]
[Result "1-0"]
[WhiteElo "2221"]
[BlackElo "2394"]
[TimeControl "180+1"]
[EndTime "15:18:36 PDT"]
[Termination "frequentblunders won by checkmate"]

1. f4 {[%clk 0:03:00.5]} 1... c5 {[%clk 0:00:13.3]} 2. Nf3 {[%clk 0:02:59.7]}
2... Nc6 {[%clk 0:00:14]} 3. e4 {[%clk 0:03:00.2]} 3... g6 {[%clk 0:00:14.9]} 4.
Nc3 {[%clk 0:03:00.7]} 4... Bg7 {[%clk 0:00:15.1]} 5. Bc4 {[%clk 0:03:00.9]}
5... e6 {[%clk 0:00:16]} 6. Kf1 {[%clk 0:03:01.3]} 6... Nge7 {[%clk 0:00:15.6]}
7. Bb3 {[%clk 0:03:01.1]} 7... d5 {[%clk 0:00:15.4]} 8. d3 {[%clk 0:03:01]} 8...
h5 {[%clk 0:00:15.7]} 9. g3 {[%clk 0:03:00.8]} 9... h4 {[%clk 0:00:16]} 10. Nxh4
{[%clk 0:03:00]} 10... Bxc3 {[%clk 0:00:14.2]} 11. bxc3 {[%clk 0:03:00.4]} 11...
dxe4 {[%clk 0:00:14.8]} 12. Qe2 {[%clk 0:02:57.3]} 12... exd3 {[%clk 0:00:14.5]}
13. cxd3 {[%clk 0:02:58.2]} 13... Nd5 {[%clk 0:00:12.3]} 14. Bd2 {[%clk
0:02:56]} 14... Bd7 {[%clk 0:00:10.9]} 15. Kg1 {[%clk 0:02:55.1]} 15... Nce7
{[%clk 0:00:10.9]} 16. Kg2 {[%clk 0:02:54.9]} 16... Rxh4 {[%clk 0:00:09.5]} 17.
gxh4 {[%clk 0:02:54.8]} 17... Bc6 {[%clk 0:00:10]} 18. Kg1 {[%clk 0:02:40.2]}
18... Nf5 {[%clk 0:00:09.3]} 19. Be1 {[%clk 0:02:39]} 19... Nf6 {[%clk
0:00:07.5]} 20. Bg3 {[%clk 0:02:29.4]} 20... Nh5 {[%clk 0:00:06.8]} 21. Kf2
{[%clk 0:02:24.4]} 21... Qc7 {[%clk 0:00:05.6]} 22. Rhe1 {[%clk 0:02:19.9]}
22... O-O-O {[%clk 0:00:05.1]} 23. Rad1 {[%clk 0:02:15.9]} 23... Nxf4 {[%clk
0:00:04.6]} 24. Qg4 {[%clk 0:02:06.7]} 24... Nxd3+ {[%clk 0:00:01.9]} 25. Rxd3
{[%clk 0:02:06.2]} 25... Nxg3 {[%clk 0:00:02.5]} 26. Rxd8+ {[%clk 0:02:04.6]}
26... Qxd8 {[%clk 0:00:03.4]} 27. Qxg3 {[%clk 0:01:58.8]} 27... Qd2+ {[%clk
0:00:04]} 28. Re2 {[%clk 0:01:59.1]} 28... Qc1 {[%clk 0:00:04.5]} 29. Qd6 {[%clk
0:01:24.4]} 29... Qh1 {[%clk 0:00:03.4]} 30. Ke3 {[%clk 0:01:19.9]} 30... Qg1+
{[%clk 0:00:03]} 31. Kd2 {[%clk 0:01:18.8]} 31... Qa1 {[%clk 0:00:03.5]} 32. Kc2
{[%clk 0:01:13.3]} 32... a5 {[%clk 0:00:02.8]} 33. Rd2 {[%clk 0:01:12]} 33...
Be4+ {[%clk 0:00:02.6]} 34. Rd3 {[%clk 0:01:07.1]} 34... Bxd3+ {[%clk
0:00:02.8]} 35. Qxd3 {[%clk 0:01:06.3]} 35... a4 {[%clk 0:00:03.3]} 36. Bc4
{[%clk 0:00:57.9]} 36... a3 {[%clk 0:00:03.8]} 37. Kd2 {[%clk 0:00:50.4]} 37...
b5 {[%clk 0:00:02.5]} 38. Bxb5 {[%clk 0:00:47.9]} 38... Qb2+ {[%clk 0:00:03.1]}
39. Ke3 {[%clk 0:00:44.2]} 39... Qxa2 {[%clk 0:00:03.6]} 40. Qd7+ {[%clk
0:00:37.5]} 40... Kb8 {[%clk 0:00:03.9]} 41. Qd6+ {[%clk 0:00:34.9]} 41... Ka7
{[%clk 0:00:03.6]} 42. Qxc5+ {[%clk 0:00:34.8]} 42... Kb7 {[%clk 0:00:03.2]} 43.
Qc6+ {[%clk 0:00:32.8]} 43... Kb8 {[%clk 0:00:03.1]} 44. Qb6+ {[%clk 0:00:32.6]}
44... Kc8 {[%clk 0:00:03]} 45. Bc6 {[%clk 0:00:30.3]} 45... Qb2 {[%clk
0:00:01.6]} 46. Qxb2 {[%clk 0:00:21.1]} 46... axb2 {[%clk 0:00:02.5]} 47. Be4
{[%clk 0:00:21.4]} 47... Kc7 {[%clk 0:00:03.2]} 48. Kd2 {[%clk 0:00:21.1]} 48...
Kd6 {[%clk 0:00:03.9]} 49. Kc2 {[%clk 0:00:20.4]} 49... f5 {[%clk 0:00:04.6]}
50. Bd3 {[%clk 0:00:19.3]} 50... e5 {[%clk 0:00:05.1]} 51. Kxb2 {[%clk
0:00:19.1]} 51... e4 {[%clk 0:00:05.6]} 52. Bf1 {[%clk 0:00:18.8]} 52... f4
{[%clk 0:00:06.1]} 53. Kc2 {[%clk 0:00:18.2]} 53... Kc5 {[%clk 0:00:06.4]} 54.
Kd2 {[%clk 0:00:17.9]} 54... Kb6 {[%clk 0:00:06.2]} 55. Bh3 {[%clk 0:00:15.7]}
55... Kc5 {[%clk 0:00:06.3]} 56. Bc8 {[%clk 0:00:15.1]} 56... Kd5 {[%clk
0:00:06.5]} 57. Bb7+ {[%clk 0:00:15.2]} 57... Ke5 {[%clk 0:00:07.1]} 58. Ke2
{[%clk 0:00:15.4]} 58... Kf5 {[%clk 0:00:06.9]} 59. h3 {[%clk 0:00:15]} 59...
Ke5 {[%clk 0:00:06.3]} 60. Bc6 {[%clk 0:00:13.5]} 60... Kf5 {[%clk 0:00:06.2]}
61. Bd7+ {[%clk 0:00:13.1]} 61... Ke5 {[%clk 0:00:06.4]} 62. Be8 {[%clk
0:00:12.9]} 62... Kf6 {[%clk 0:00:06.5]} 63. Bc6 {[%clk 0:00:12.1]} 63... Ke5
{[%clk 0:00:06.7]} 64. c4 {[%clk 0:00:08.9]} 64... Kd4 {[%clk 0:00:06.5]} 65.
Bd5 {[%clk 0:00:09]} 65... Ke5 {[%clk 0:00:06.4]} 66. Bg8 {[%clk 0:00:08.1]}
66... Kd4 {[%clk 0:00:06.1]} 67. Bh7 {[%clk 0:00:07.9]} 67... f3+ {[%clk
0:00:06.4]} 68. Kf2 {[%clk 0:00:07.8]} 68... Kxc4 {[%clk 0:00:06.6]} 69. Bxg6
{[%clk 0:00:07.8]} 69... Kd4 {[%clk 0:00:07.1]} 70. h5 {[%clk 0:00:07.5]} 70...
Ke5 {[%clk 0:00:07.5]} 71. h6 {[%clk 0:00:07.6]} 71... Kf4 {[%clk 0:00:07.4]}
72. Bxe4 {[%clk 0:00:07.8]} 72... Kxe4 {[%clk 0:00:07.2]} 73. h7 {[%clk
0:00:08.7]} 73... Kf4 {[%clk 0:00:07.6]} 74. h8=Q {[%clk 0:00:09.6]} 74... Kg5
{[%clk 0:00:08.5]} 75. Qf8 {[%clk 0:00:09.9]} 75... Kh4 {[%clk 0:00:09.4]} 76.
Qxf3 {[%clk 0:00:10.4]} 76... Kg5 {[%clk 0:00:09.4]} 77. Qg4+ {[%clk 0:00:10.4]}
77... Kh6 {[%clk 0:00:10.3]} 78. h4 {[%clk 0:00:11.3]} 78... Kh7 {[%clk
0:00:11]} 79. Qg5 {[%clk 0:00:11.8]} 79... Kh8 {[%clk 0:00:11.9]} 80. h5 {[%clk
0:00:11.9]} 80... Kh7 {[%clk 0:00:12.8]} 81. h6 {[%clk 0:00:12.1]} 81... Kh8
{[%clk 0:00:13.7]} 82. Qg7# {[%clk 0:00:12.6]} 1-0

[Event "Late-Titled-Tuesday-Blitz-May-07-2024"]
[Site "Chess.com"]
[Date "2024.05.07"]
[Round "7"]
[White "IlanSchnaider"]
[Black "semchik90"]
[Result "1-0"]
[WhiteElo "2719"]
[BlackElo "2449"]
[TimeControl "180+1"]
[EndTime "15:19:10 PDT"]
[Termination "IlanSchnaider won by resignation"]

1. Nf3 {[%clk 0:03:00.9]} 1... d5 {[%clk 0:02:59.8]} 2. c4 {[%clk 0:02:59.3]}
2... c6 {[%clk 0:03:00.2]} 3. e3 {[%clk 0:02:59.6]} 3... Nf6 {[%clk 0:03:00]} 4.
Nc3 {[%clk 0:03:00]} 4... g6 {[%clk 0:03:00.5]} 5. b3 {[%clk 0:02:56.1]} 5...
Bg7 {[%clk 0:03:00.3]} 6. Bb2 {[%clk 0:02:56.8]} 6... O-O {[%clk 0:02:59.8]} 7.
Be2 {[%clk 0:02:57.4]} 7... Ne4 {[%clk 0:02:56.3]} 8. O-O {[%clk 0:02:52.5]}
8... Bf5 {[%clk 0:02:47.8]} 9. Nh4 {[%clk 0:02:41.1]} 9... Be6 {[%clk
0:02:36.3]} 10. cxd5 {[%clk 0:02:12.8]} 10... cxd5 {[%clk 0:02:33.7]} 11. Rb1
{[%clk 0:01:46.8]} 11... Nxc3 {[%clk 0:02:18.8]} 12. Bxc3 {[%clk 0:01:46.1]}
12... d4 {[%clk 0:02:16.9]} 13. exd4 {[%clk 0:01:44.9]} 13... Bxd4 {[%clk
0:02:17.8]} 14. Qc1 {[%clk 0:01:20.9]} 14... Nc6 {[%clk 0:02:14.5]} 15. Nf3
{[%clk 0:01:19.2]} 15... Bf5 {[%clk 0:02:05.1]} 16. Rb2 {[%clk 0:01:09.5]} 16...
Rc8 {[%clk 0:02:04]} 17. Bc4 {[%clk 0:01:06]} 17... e5 {[%clk 0:01:46.8]} 18.
Re1 {[%clk 0:01:02.5]} 18... Bxc3 {[%clk 0:01:30.6]} 19. dxc3 {[%clk 0:01:02.1]}
19... e4 {[%clk 0:01:25.2]} 20. Ng5 {[%clk 0:00:48.5]} 20... Ne5 {[%clk
0:01:17.8]} 21. Nxe4 {[%clk 0:00:37.3]} 21... Nxc4 {[%clk 0:01:12.2]} 22. bxc4
{[%clk 0:00:36.2]} 22... Rxc4 {[%clk 0:01:12.3]} 23. Ng3 {[%clk 0:00:33.9]}
23... Be6 {[%clk 0:01:02.5]} 24. Rxb7 {[%clk 0:00:26.9]} 24... Qa5 {[%clk
0:01:02.7]} 25. Qh6 {[%clk 0:00:20]} 25... Qxc3 {[%clk 0:00:59.8]} 26. Rxe6
{[%clk 0:00:20]} 26... Qa1+ {[%clk 0:00:42.6]} 27. Nf1 {[%clk 0:00:18.9]} 27...
Rc1 {[%clk 0:00:42.6]} 28. h3 {[%clk 0:00:06.8]} 28... Rxf1+ {[%clk 0:00:42.5]}
29. Kh2 {[%clk 0:00:07.5]} 29... Rh1+ {[%clk 0:00:34.5]} 30. Kg3 {[%clk
0:00:07.7]} 30... Qc3+ {[%clk 0:00:34.5]} 31. Re3 {[%clk 0:00:07.6]} 31... Qd4
{[%clk 0:00:28.1]} 32. Rbe7 {[%clk 0:00:04.4]} 32... Rd1 {[%clk 0:00:23.2]} 33.
Re8 {[%clk 0:00:02.9]} 33... Qd6+ {[%clk 0:00:22.3]} 34. f4 {[%clk 0:00:03.1]}
34... Rd5 {[%clk 0:00:12.6]} 35. Qh4 {[%clk 0:00:02]} 35... Rd3 {[%clk
0:00:07.2]} 36. Rxf8+ {[%clk 0:00:01.9]} 36... Kxf8 {[%clk 0:00:08.1]} 37. Rxd3
{[%clk 0:00:01.3]} 37... Qxd3+ {[%clk 0:00:07.8]} 38. Kh2 {[%clk 0:00:02.2]}
38... Qd6 {[%clk 0:00:05.6]} 39. Qh6+ {[%clk 0:00:01.6]} 39... Ke7 {[%clk
0:00:05.6]} 40. Qg5+ {[%clk 0:00:02.3]} 40... f6 {[%clk 0:00:05.3]} 41. Qg3
{[%clk 0:00:02.2]} 41... Kf7 {[%clk 0:00:05]} 42. Qb3+ {[%clk 0:00:02.3]} 42...
Kg7 {[%clk 0:00:04.8]} 43. Kg3 {[%clk 0:00:02.9]} 43... g5 {[%clk 0:00:04.5]}
44. Qb7+ {[%clk 0:00:02.1]} 44... Kh6 {[%clk 0:00:03.8]} 45. Kh2 {[%clk
0:00:01.6]} 45... Qxf4+ {[%clk 0:00:03.9]} 46. Kh1 {[%clk 0:00:02.1]} 46... Qf1+
{[%clk 0:00:04]} 47. Kh2 {[%clk 0:00:02.5]} 47... Qf4+ {[%clk 0:00:04.9]} 48.
Kg1 {[%clk 0:00:02.9]} 48... Qe3+ {[%clk 0:00:04.9]} 49. Kf1 {[%clk 0:00:02]}
49... Qb6 {[%clk 0:00:04.6]} 50. Qf7 {[%clk 0:00:01.7]} 50... Qb5+ {[%clk
0:00:03.8]} 51. Kg1 {[%clk 0:00:01.9]} 51... Qc5+ {[%clk 0:00:04.3]} 52. Kh1
{[%clk 0:00:02.5]} 52... Qc1+ {[%clk 0:00:04]} 53. Kh2 {[%clk 0:00:03]} 53...
Qf4+ {[%clk 0:00:04.6]} 54. Kh1 {[%clk 0:00:03.7]} 54... g4 {[%clk 0:00:04.7]}
55. hxg4 {[%clk 0:00:03.1]} 55... Qf1+ {[%clk 0:00:04.8]} 56. Kh2 {[%clk
0:00:03.6]} 56... Qf4+ {[%clk 0:00:05.5]} 57. Kh3 {[%clk 0:00:03.3]} 57... Qe3+
{[%clk 0:00:04.4]} 58. g3 {[%clk 0:00:03.9]} 58... Qe5 {[%clk 0:00:02.8]} 59.
Qf8+ {[%clk 0:00:03.6]} 59... Kg6 {[%clk 0:00:03]} 60. Qg8+ {[%clk 0:00:04.1]}
60... Kh6 {[%clk 0:00:03.5]} 61. Qf8+ {[%clk 0:00:02.6]} 61... Kg6 {[%clk
0:00:03.4]} 62. Qc8 {[%clk 0:00:02.8]} 62... Qe1 {[%clk 0:00:02.6]} 63. Qf5+
{[%clk 0:00:02.6]} 63... Kg7 {[%clk 0:00:03.3]} 64. Qd7+ {[%clk 0:00:02.9]}
64... Kg6 {[%clk 0:00:03.8]} 65. Qd3+ {[%clk 0:00:02.8]} 65... Kg7 {[%clk
0:00:04]} 66. Qf3 {[%clk 0:00:03.3]} 66... Qg1 {[%clk 0:00:03.3]} 67. a4 {[%clk
0:00:02.1]} 67... Qe1 {[%clk 0:00:03.1]} 68. Qb7+ {[%clk 0:00:01.9]} 68... Kg6
{[%clk 0:00:02.5]} 69. Qf3 {[%clk 0:00:02]} 69... a5 {[%clk 0:00:02.3]} 70. Qf5+
{[%clk 0:00:01.8]} 70... Kg7 {[%clk 0:00:03]} 71. Qf3 {[%clk 0:00:01.1]} 71...
Qe5 {[%clk 0:00:02.6]} 72. Kg2 {[%clk 0:00:01.4]} 72... Qe1 {[%clk 0:00:02.5]}
73. Qb7+ {[%clk 0:00:01.2]} 73... Kg6 {[%clk 0:00:02.4]} 74. Qf3 {[%clk
0:00:01.8]} 74... Qd2+ {[%clk 0:00:02.4]} 75. Kh3 {[%clk 0:00:02.4]} 75... Qe1
{[%clk 0:00:02.6]} 76. Qf5+ {[%clk 0:00:03]} 76... Kg7 {[%clk 0:00:03.2]} 77. g5
{[%clk 0:00:03.4]} 77... fxg5 {[%clk 0:00:03.2]} 78. Qxg5+ {[%clk 0:00:03.6]}
78... Kf7 {[%clk 0:00:03.9]} 79. Qd5+ {[%clk 0:00:03.3]} 79... Kg7 {[%clk
0:00:04.2]} 80. Kg2 {[%clk 0:00:02.4]} 80... Kg6 {[%clk 0:00:04.1]} 81. Qc6+
{[%clk 0:00:02.3]} 81... Kg7 {[%clk 0:00:04.1]} 82. Qb5 {[%clk 0:00:03]} 82...
Qd2+ {[%clk 0:00:04]} 83. Kf3 {[%clk 0:00:03.4]} 83... Qb4 {[%clk 0:00:04.7]}
84. Qxb4 {[%clk 0:00:02.5]} 84... axb4 {[%clk 0:00:05.2]} 85. Ke3 {[%clk
0:00:02.4]} 85... Kf6 {[%clk 0:00:04.6]} 86. Kd4 {[%clk 0:00:02.5]} 86... Kg5
{[%clk 0:00:05]} 87. Kc4 {[%clk 0:00:02.7]} 87... Kg4 {[%clk 0:00:05.9]} 88. a5
{[%clk 0:00:03.1]} 88... Kxg3 {[%clk 0:00:06.8]} 89. a6 {[%clk 0:00:03.7]} 89...
h5 {[%clk 0:00:07.5]} 90. a7 {[%clk 0:00:04.3]} 90... h4 {[%clk 0:00:08.4]} 91.
a8=Q {[%clk 0:00:04.9]} 91... h3 {[%clk 0:00:09.3]} 92. Qh1 {[%clk 0:00:05.4]}
92... h2 {[%clk 0:00:09.7]} 93. Kxb4 {[%clk 0:00:05.9]} 93... Kh3 {[%clk
0:00:10.2]} 94. Kc3 {[%clk 0:00:06.6]} 94... Kg3 {[%clk 0:00:11.1]} 95. Kd3
{[%clk 0:00:07.4]} 95... Kh3 {[%clk 0:00:11.9]} 96. Ke3 {[%clk 0:00:08]} 96...
Kg3 {[%clk 0:00:11.7]} 97. Ke2 {[%clk 0:00:08.7]} 1-0